[Event "Late-Titled-Tuesday-Blitz-January-23-2024"]
[Site "Chess.com"]
[Date "2024.01.23"]
[Round "3"]
[White "wild3000"]
[Black "jk13"]
[Result "0-1"]
[WhiteElo "2456"]
[BlackElo "2653"]
[TimeControl "180+1"]
[EndTime "14:28:55 PST"]
[Termination "jk13 won on time"]

1. d4 {[%clk 0:02:58.9]} 1... Nf6 {[%clk 0:02:59.9]} 2. Nf3 {[%clk 0:02:58.8]}
2... e6 {[%clk 0:03:00.6]} 3. e3 {[%clk 0:02:59.1]} 3... d5 {[%clk 0:03:00.7]}
4. Be2 {[%clk 0:02:59.3]} 4... c5 {[%clk 0:03:01]} 5. O-O {[%clk 0:03:00.2]}
5... Be7 {[%clk 0:03:01.1]} 6. dxc5 {[%clk 0:02:59.9]} 6... Bxc5 {[%clk
0:03:00.8]} 7. c4 {[%clk 0:03:00.3]} 7... O-O {[%clk 0:03:00.1]} 8. Nc3 {[%clk
0:02:59.9]} 8... Nc6 {[%clk 0:03:00.2]} 9. a3 {[%clk 0:03:00]} 9... Qe7 {[%clk
0:02:52.7]} 10. b4 {[%clk 0:02:59.8]} 10... Bb6 {[%clk 0:02:53.1]} 11. Bb2
{[%clk 0:02:59.1]} 11... Rd8 {[%clk 0:02:53.1]} 12. cxd5 {[%clk 0:02:51.8]}
12... exd5 {[%clk 0:02:52.7]} 13. Na4 {[%clk 0:02:43.2]} 13... Bc7 {[%clk
0:02:41]} 14. Rc1 {[%clk 0:02:42.9]} 14... Ne4 {[%clk 0:02:31]} 15. Nc5 {[%clk
0:02:17]} 15... Bd6 {[%clk 0:02:08.1]} 16. Nb3 {[%clk 0:01:50.2]} 16... Bg4
{[%clk 0:01:49.4]} 17. Nbd4 {[%clk 0:01:46.5]} 17... Rac8 {[%clk 0:01:38.9]} 18.
Nxc6 {[%clk 0:01:46.3]} 18... bxc6 {[%clk 0:01:39.8]} 19. Nd4 {[%clk 0:01:28.1]}
19... Qh4 {[%clk 0:01:01.4]} 20. g3 {[%clk 0:01:16.1]} 20... Nxg3 {[%clk
0:01:00.7]} 21. fxg3 {[%clk 0:00:41.1]} 21... Bxg3 {[%clk 0:01:01.6]} 22. hxg3
{[%clk 0:00:34.1]} 22... Qxg3+ {[%clk 0:01:02.5]} 23. Kh1 {[%clk 0:00:34.1]}
23... Rd6 {[%clk 0:00:55.6]} 24. Bxg4 {[%clk 0:00:28.3]} 24... Rh6+ {[%clk
0:00:55.3]} 25. Bh5 {[%clk 0:00:28.5]} 25... Qh3+ {[%clk 0:00:53.5]} 26. Kg1
{[%clk 0:00:28.1]} 26... Rxh5 {[%clk 0:00:52.3]} 27. Kf2 {[%clk 0:00:17.9]}
27... Qh2+ {[%clk 0:00:36.5]} 28. Ke1 {[%clk 0:00:17.8]} 28... Qxb2 {[%clk
0:00:23.4]} 29. Qxh5 {[%clk 0:00:14.2]} 29... Qxc1+ {[%clk 0:00:22.2]} 30. Ke2
{[%clk 0:00:14.1]} 30... Qb2+ {[%clk 0:00:21.6]} 31. Kf3 {[%clk 0:00:11.9]}
31... g6 {[%clk 0:00:18.1]} 32. Qg5 {[%clk 0:00:09.7]} 32... Qxa3 {[%clk
0:00:16.4]} 33. Kg2 {[%clk 0:00:09.1]} 33... Qxb4 {[%clk 0:00:14.6]} 34. Qf6
{[%clk 0:00:08.7]} 34... Rf8 {[%clk 0:00:13.7]} 35. Nf3 {[%clk 0:00:08.7]} 35...
Re8 {[%clk 0:00:10.3]} 36. Ng5 {[%clk 0:00:07.6]} 36... Qe7 {[%clk 0:00:10]} 37.
Qxf7+ {[%clk 0:00:05.7]} 37... Qxf7 {[%clk 0:00:10.5]} 38. Nxf7 {[%clk
0:00:06.6]} 38... Rf8 {[%clk 0:00:10.1]} 39. Ng5 {[%clk 0:00:05.4]} 39... Rxf1
{[%clk 0:00:09]} 40. Kxf1 {[%clk 0:00:05.7]} 40... h5 {[%clk 0:00:06.7]} 41. Ne6
{[%clk 0:00:05.1]} 41... a5 {[%clk 0:00:06.8]} 42. Nd4 {[%clk 0:00:04.5]} 42...
c5 {[%clk 0:00:07.3]} 43. Nb5 {[%clk 0:00:04.2]} 43... a4 {[%clk 0:00:08]} 44.
Nc3 {[%clk 0:00:03.7]} 44... a3 {[%clk 0:00:08.4]} 45. Na2 {[%clk 0:00:02.5]}
45... Kf7 {[%clk 0:00:08.8]} 46. Ke2 {[%clk 0:00:02.7]} 46... Kf6 {[%clk
0:00:09.5]} 47. Nc3 {[%clk 0:00:02.4]} 47... Ke5 {[%clk 0:00:09.5]} 48. Kd3
{[%clk 0:00:02.6]} 48... d4 {[%clk 0:00:09.6]} 49. exd4+ {[%clk 0:00:02.6]}
49... cxd4 {[%clk 0:00:10.5]} 0-1

[Event "Late-Titled-Tuesday-Blitz-January-23-2024"]
[Site "Chess.com"]
[Date "2024.01.23"]
[Round "3"]
[White "sebastianmarinp"]
[Black "TheMagician"]
[Result "1-0"]
[WhiteElo "2405"]
[BlackElo "2128"]
[TimeControl "180+1"]
[EndTime "14:28:56 PST"]
[Termination "sebastianmarinp won by checkmate"]

1. d4 {[%clk 0:02:56.2]} 1... Nf6 {[%clk 0:02:53.6]} 2. c4 {[%clk 0:02:55.1]}
2... c5 {[%clk 0:02:52.2]} 3. Nf3 {[%clk 0:02:51.9]} 3... g6 {[%clk 0:02:50.4]}
4. g3 {[%clk 0:02:51.5]} 4... Bg7 {[%clk 0:02:47]} 5. Bg2 {[%clk 0:02:51]} 5...
O-O {[%clk 0:02:40]} 6. O-O {[%clk 0:02:46.3]} 6... d6 {[%clk 0:02:37.6]} 7. Nc3
{[%clk 0:02:42]} 7... Na6 {[%clk 0:02:32.9]} 8. d5 {[%clk 0:02:32.4]} 8... Nc7
{[%clk 0:02:14.9]} 9. a4 {[%clk 0:02:31.6]} 9... a6 {[%clk 0:02:08.5]} 10. a5
{[%clk 0:02:28.4]} 10... Rb8 {[%clk 0:02:08.1]} 11. Na4 {[%clk 0:02:17.8]} 11...
Na8 {[%clk 0:01:42.3]} 12. Bd2 {[%clk 0:02:14.3]} 12... Ne4 {[%clk 0:01:37.7]}
13. Be1 {[%clk 0:01:58.7]} 13... Bd7 {[%clk 0:01:37.3]} 14. Qc2 {[%clk
0:01:54.5]} 14... f5 {[%clk 0:01:29.4]} 15. Nd2 {[%clk 0:01:40]} 15... Nf6
{[%clk 0:01:03.6]} 16. f3 {[%clk 0:01:19.5]} 16... Qxa5 {[%clk 0:00:54.2]} 17.
e4 {[%clk 0:01:01.4]} 17... b5 {[%clk 0:00:43.4]} 18. Nb3 {[%clk 0:00:32.6]}
18... Qd8 {[%clk 0:00:37.6]} 19. Naxc5 {[%clk 0:00:28.6]} 19... dxc5 {[%clk
0:00:36.5]} 20. Nxc5 {[%clk 0:00:29.5]} 20... fxe4 {[%clk 0:00:34.2]} 21. fxe4
{[%clk 0:00:27.3]} 21... Ng4 {[%clk 0:00:31.5]} 22. Rxf8+ {[%clk 0:00:24.5]}
22... Qxf8 {[%clk 0:00:29.5]} 23. Nxd7 {[%clk 0:00:19.5]} 23... Bd4+ {[%clk
0:00:20]} 24. Kh1 {[%clk 0:00:19.7]} 24... Qh6 {[%clk 0:00:19.5]} 25. h3 {[%clk
0:00:17]} 25... Rd8 {[%clk 0:00:18.1]} 26. Rxa6 {[%clk 0:00:11.7]} 26... Ne3
{[%clk 0:00:16.2]} 27. Qd2 {[%clk 0:00:08.8]} 27... Nc7 {[%clk 0:00:14.4]} 28.
Rc6 {[%clk 0:00:07.6]} 28... Rxd7 {[%clk 0:00:14.6]} 29. Bf2 {[%clk 0:00:06.1]}
29... e5 {[%clk 0:00:13.2]} 30. dxe6 {[%clk 0:00:04.7]} 30... Nxg2 {[%clk
0:00:11.2]} 31. Qxh6 {[%clk 0:00:02]} 31... Nxe6 {[%clk 0:00:07.2]} 32. Rc8+
{[%clk 0:00:01.8]} 32... Nd8 {[%clk 0:00:05.6]} 33. Bxd4 {[%clk 0:00:01.9]}
33... Rxd4 {[%clk 0:00:05.6]} 34. Kxg2 {[%clk 0:00:02.3]} 34... Rd2+ {[%clk
0:00:05.3]} 35. Kf3 {[%clk 0:00:02.8]} 35... Rd7 {[%clk 0:00:06]} 36. Qg5 {[%clk
0:00:02.8]} 36... bxc4 {[%clk 0:00:05.1]} 37. Rxd8+ {[%clk 0:00:03.7]} 37...
Rxd8 {[%clk 0:00:04.8]} 38. Qxd8+ {[%clk 0:00:04.6]} 38... Kg7 {[%clk
0:00:05.4]} 39. Qd7+ {[%clk 0:00:05.5]} 39... Kh6 {[%clk 0:00:05.9]} 40. Qc8
{[%clk 0:00:06.2]} 40... g5 {[%clk 0:00:04.9]} 41. Qxc4 {[%clk 0:00:06.6]} 41...
g4+ {[%clk 0:00:04.6]} 42. hxg4 {[%clk 0:00:07.5]} 42... Kg6 {[%clk 0:00:05.2]}
43. Qc5 {[%clk 0:00:07.9]} 43... h6 {[%clk 0:00:05.2]} 44. Qf5+ {[%clk 0:00:08]}
44... Kg7 {[%clk 0:00:05.5]} 45. g5 {[%clk 0:00:08.4]} 45... h5 {[%clk
0:00:05.7]} 46. Qf6+ {[%clk 0:00:08.3]} 46... Kg8 {[%clk 0:00:06]} 47. g6 {[%clk
0:00:08.7]} 47... h4 {[%clk 0:00:04.8]} 48. Qf7+ {[%clk 0:00:09.1]} 48... Kh8
{[%clk 0:00:04.6]} 49. Qh7# {[%clk 0:00:10]} 1-0

[Event "Late-Titled-Tuesday-Blitz-January-23-2024"]
[Site "Chess.com"]
[Date "2024.01.23"]
[Round "3"]
[White "EcosseKillie"]
[Black "Balla_Tamas"]
[Result "1-0"]
[WhiteElo "2269"]
[BlackElo "2450"]
[TimeControl "180+1"]
[EndTime "14:29:00 PST"]
[Termination "EcosseKillie won on time"]

1. d4 {[%clk 0:03:00.9]} 1... d5 {[%clk 0:02:57.6]} 2. Bg5 {[%clk 0:03:00.2]}
2... Nf6 {[%clk 0:02:51.4]} 3. Bxf6 {[%clk 0:03:00.5]} 3... exf6 {[%clk
0:02:52.3]} 4. e3 {[%clk 0:03:00.1]} 4... c5 {[%clk 0:02:52.4]} 5. Nc3 {[%clk
0:02:55.9]} 5... Nc6 {[%clk 0:02:51.5]} 6. dxc5 {[%clk 0:02:53.9]} 6... Be6
{[%clk 0:02:47.9]} 7. Bb5 {[%clk 0:02:45]} 7... Bxc5 {[%clk 0:02:46.7]} 8. Nge2
{[%clk 0:02:45.6]} 8... O-O {[%clk 0:02:46.6]} 9. O-O {[%clk 0:02:45.6]} 9...
Rc8 {[%clk 0:02:18.1]} 10. Ba4 {[%clk 0:02:32.1]} 10... Ne5 {[%clk 0:02:05.9]}
11. Bb3 {[%clk 0:02:27.7]} 11... Nc4 {[%clk 0:01:39.4]} 12. Bxc4 {[%clk
0:02:19.9]} 12... dxc4 {[%clk 0:01:40.3]} 13. Nf4 {[%clk 0:02:20.5]} 13... Qe7
{[%clk 0:01:35]} 14. Ne4 {[%clk 0:02:07.8]} 14... Bb6 {[%clk 0:01:27.6]} 15.
Nxe6 {[%clk 0:01:59.8]} 15... fxe6 {[%clk 0:01:21.5]} 16. Qf3 {[%clk 0:01:47.6]}
16... Kh8 {[%clk 0:01:17.2]} 17. Rad1 {[%clk 0:01:45.9]} 17... Rfd8 {[%clk
0:01:15.1]} 18. g3 {[%clk 0:01:35.7]} 18... f5 {[%clk 0:01:09.1]} 19. Nc3 {[%clk
0:01:33.2]} 19... Qf6 {[%clk 0:00:59]} 20. Qxb7 {[%clk 0:01:29.6]} 20... e5
{[%clk 0:00:53.2]} 21. Nd5 {[%clk 0:01:24.2]} 21... Qe6 {[%clk 0:00:38.7]} 22.
Nxb6 {[%clk 0:01:21.6]} 22... axb6 {[%clk 0:00:38.7]} 23. c3 {[%clk 0:01:09.5]}
23... f4 {[%clk 0:00:36.7]} 24. exf4 {[%clk 0:01:04.1]} 24... exf4 {[%clk
0:00:36.3]} 25. Qf3 {[%clk 0:01:04.2]} 25... fxg3 {[%clk 0:00:32.8]} 26. hxg3
{[%clk 0:01:05.1]} 26... h6 {[%clk 0:00:32.3]} 27. Rfe1 {[%clk 0:01:04.8]} 27...
Qg6 {[%clk 0:00:31.2]} 28. Rxd8+ {[%clk 0:00:58.8]} 28... Rxd8 {[%clk
0:00:32.1]} 29. Qe4 {[%clk 0:00:53]} 29... Qf7 {[%clk 0:00:24.3]} 30. Re2 {[%clk
0:00:47]} 30... Qh5 {[%clk 0:00:21.1]} 31. Kg2 {[%clk 0:00:40.7]} 31... Qa5
{[%clk 0:00:18.1]} 32. a3 {[%clk 0:00:36.5]} 32... Rf8 {[%clk 0:00:16.1]} 33.
Qxc4 {[%clk 0:00:34.5]} 33... Qa8+ {[%clk 0:00:16.3]} 34. Qe4 {[%clk 0:00:34]}
34... Qd8 {[%clk 0:00:16]} 35. c4 {[%clk 0:00:33.3]} 35... Qc7 {[%clk
0:00:15.6]} 36. b4 {[%clk 0:00:33.3]} 36... Rc8 {[%clk 0:00:14.9]} 37. Rc2
{[%clk 0:00:30.9]} 37... Qa7 {[%clk 0:00:14.4]} 38. Rc3 {[%clk 0:00:22.6]} 38...
Qd7 {[%clk 0:00:13.8]} 39. c5 {[%clk 0:00:20.6]} 39... Re8 {[%clk 0:00:13.9]}
40. Qf3 {[%clk 0:00:19]} 40... b5 {[%clk 0:00:11.1]} 41. c6 {[%clk 0:00:19]}
41... Qc7 {[%clk 0:00:11.7]} 42. Qd5 {[%clk 0:00:18.3]} 42... Rc8 {[%clk
0:00:11.8]} 43. Qd7 {[%clk 0:00:17.8]} 43... Qb8 {[%clk 0:00:07.4]} 44. c7
{[%clk 0:00:17.1]} 44... Qb7+ {[%clk 0:00:08]} 45. Qc6 {[%clk 0:00:12.5]} 45...
Qa7 {[%clk 0:00:06.4]} 46. Rd3 {[%clk 0:00:11.1]} 46... Ra8 {[%clk 0:00:01.2]}
47. Rd8+ {[%clk 0:00:10.8]} 1-0

[Event "Late-Titled-Tuesday-Blitz-January-23-2024"]
[Site "Chess.com"]
[Date "2024.01.23"]
[Round "3"]
[White "ozates"]
[Black "Boninknights"]
[Result "1-0"]
[WhiteElo "2595"]
[BlackElo "2371"]
[TimeControl "180+1"]
[EndTime "14:29:02 PST"]
[Termination "ozates won on time"]

1. e4 {[%clk 0:03:00.9]} 1... c6 {[%clk 0:02:58.7]} 2. d4 {[%clk 0:02:58.3]}
2... a6 {[%clk 0:02:58.6]} 3. c4 {[%clk 0:02:57.5]} 3... d6 {[%clk 0:02:57.9]}
4. Nc3 {[%clk 0:02:57.5]} 4... Nf6 {[%clk 0:02:56.3]} 5. Be2 {[%clk 0:02:57.3]}
5... b5 {[%clk 0:02:52.7]} 6. f3 {[%clk 0:02:48.5]} 6... Nbd7 {[%clk 0:02:48.2]}
7. Nh3 {[%clk 0:02:45.4]} 7... Bb7 {[%clk 0:02:45.8]} 8. Nf2 {[%clk 0:02:44.4]}
8... e5 {[%clk 0:02:43.5]} 9. d5 {[%clk 0:02:42.7]} 9... bxc4 {[%clk 0:02:40.8]}
10. Bxc4 {[%clk 0:02:42.5]} 10... Nb6 {[%clk 0:02:37.4]} 11. dxc6 {[%clk
0:02:42.8]} 11... Bxc6 {[%clk 0:02:34.2]} 12. Bb3 {[%clk 0:02:43.2]} 12... d5
{[%clk 0:02:31.9]} 13. exd5 {[%clk 0:02:42.9]} 13... Nfxd5 {[%clk 0:02:30.6]}
14. Nxd5 {[%clk 0:02:43.8]} 14... Nxd5 {[%clk 0:02:29.7]} 15. O-O {[%clk
0:02:40.6]} 15... Bc5 {[%clk 0:02:27.6]} 16. Kh1 {[%clk 0:02:40.5]} 16... O-O
{[%clk 0:02:24.6]} 17. Ne4 {[%clk 0:02:40.5]} 17... Bb6 {[%clk 0:02:15.5]} 18.
Bg5 {[%clk 0:02:40]} 18... Qd7 {[%clk 0:02:00.5]} 19. Rc1 {[%clk 0:02:39.8]}
19... Ne3 {[%clk 0:01:50.1]} 20. Qxd7 {[%clk 0:02:32.5]} 20... Bxd7 {[%clk
0:01:47.8]} 21. Rfe1 {[%clk 0:02:22.5]} 21... Nf5 {[%clk 0:01:45.5]} 22. Bd5
{[%clk 0:02:16.2]} 22... Rac8 {[%clk 0:01:42.6]} 23. g4 {[%clk 0:02:09.5]} 23...
Nd4 {[%clk 0:01:39.7]} 24. Nd6 {[%clk 0:02:08.3]} 24... Rxc1 {[%clk 0:01:30.6]}
25. Rxc1 {[%clk 0:02:09.2]} 25... Be6 {[%clk 0:01:25.4]} 26. Bxe6 {[%clk
0:02:05.1]} 26... fxe6 {[%clk 0:01:21.8]} 27. Be7 {[%clk 0:02:05.5]} 27... Rb8
{[%clk 0:01:14.4]} 28. Kg2 {[%clk 0:02:06]} 28... Bd8 {[%clk 0:01:11.2]} 29.
Bxd8 {[%clk 0:02:02.4]} 29... Rxd8 {[%clk 0:01:09.4]} 30. Ne4 {[%clk 0:01:58.6]}
30... Rf8 {[%clk 0:01:06.9]} 31. Rc3 {[%clk 0:01:54.4]} 31... a5 {[%clk
0:01:02]} 32. b3 {[%clk 0:01:54.2]} 32... h6 {[%clk 0:01:01]} 33. h4 {[%clk
0:01:53.2]} 33... Rb8 {[%clk 0:00:57.1]} 34. Rc4 {[%clk 0:01:45]} 34... Kf7
{[%clk 0:00:43]} 35. Rc7+ {[%clk 0:01:41]} 35... Kf8 {[%clk 0:00:40.7]} 36. Ra7
{[%clk 0:01:36.1]} 36... Rc8 {[%clk 0:00:32.4]} 37. Rxa5 {[%clk 0:01:24.1]}
37... Rc2+ {[%clk 0:00:30.6]} 38. Nf2 {[%clk 0:01:12]} 38... Rc3 {[%clk
0:00:25]} 39. Rxe5 {[%clk 0:01:06.3]} 39... Nxf3 {[%clk 0:00:22.3]} 40. Rxe6
{[%clk 0:01:06.7]} 40... Nxh4+ {[%clk 0:00:19.1]} 41. Kf1 {[%clk 0:01:07.3]}
41... Rc2 {[%clk 0:00:14.9]} 42. Re2 {[%clk 0:01:06.9]} 42... Rc1+ {[%clk
0:00:13.5]} 43. Re1 {[%clk 0:01:07.5]} 43... Rc2 {[%clk 0:00:13.3]} 44. a4
{[%clk 0:01:07.9]} 44... Rb2 {[%clk 0:00:12.3]} 45. Ra1 {[%clk 0:01:04.1]} 45...
Rxb3 {[%clk 0:00:11.3]} 46. a5 {[%clk 0:01:04.8]} 46... Rb7 {[%clk 0:00:11]} 47.
a6 {[%clk 0:01:04.3]} 47... Ra7 {[%clk 0:00:11]} 48. Ne4 {[%clk 0:01:00.4]}
48... Ke7 {[%clk 0:00:10.7]} 49. Nc3 {[%clk 0:00:59.2]} 49... Kd7 {[%clk
0:00:08.9]} 50. Nb5 {[%clk 0:00:59.3]} 50... Ra8 {[%clk 0:00:08.7]} 51. a7
{[%clk 0:00:49.7]} 51... Kc6 {[%clk 0:00:08.1]} 52. Rb1 {[%clk 0:00:50]} 52...
Ng6 {[%clk 0:00:06]} 53. Kf2 {[%clk 0:00:47.6]} 53... Ne5 {[%clk 0:00:05.5]} 54.
Kg3 {[%clk 0:00:48]} 54... Nd7 {[%clk 0:00:03.4]} 55. Kf4 {[%clk 0:00:47.4]}
55... g6 {[%clk 0:00:02.4]} 56. Ke4 {[%clk 0:00:25.1]} 56... h5 {[%clk
0:00:02.5]} 57. g5 {[%clk 0:00:24.4]} 57... h4 {[%clk 0:00:02.2]} 58. Kf4 {[%clk
0:00:23.9]} 1-0

[Event "Late-Titled-Tuesday-Blitz-January-23-2024"]
[Site "Chess.com"]
[Date "2024.01.23"]
[Round "3"]
[White "Goryachkina"]
[Black "Actuary44"]
[Result "1-0"]
[WhiteElo "2698"]
[BlackElo "2483"]
[TimeControl "180+1"]
[EndTime "14:29:03 PST"]
[Termination "Goryachkina won by resignation"]

1. e4 {[%clk 0:02:59.9]} 1... b6 {[%clk 0:03:00.3]} 2. d4 {[%clk 0:02:59.5]}
2... Bb7 {[%clk 0:03:00.9]} 3. Bd3 {[%clk 0:02:59.7]} 3... e6 {[%clk 0:03:01.6]}
4. Nf3 {[%clk 0:02:58.9]} 4... Nf6 {[%clk 0:03:02.3]} 5. Nbd2 {[%clk 0:02:58.6]}
5... d5 {[%clk 0:03:02.9]} 6. e5 {[%clk 0:02:57.7]} 6... Nfd7 {[%clk 0:03:03.4]}
7. c3 {[%clk 0:02:48.6]} 7... c5 {[%clk 0:03:03.6]} 8. Nf1 {[%clk 0:02:46.4]}
8... Nc6 {[%clk 0:03:03.9]} 9. Ng3 {[%clk 0:02:46.1]} 9... Qc7 {[%clk
0:03:04.2]} 10. O-O {[%clk 0:02:44.9]} 10... O-O-O {[%clk 0:03:04.3]} 11. a4
{[%clk 0:02:38.4]} 11... h6 {[%clk 0:03:03.6]} 12. a5 {[%clk 0:02:35]} 12... c4
{[%clk 0:03:02.8]} 13. axb6 {[%clk 0:02:32.8]} 13... Nxb6 {[%clk 0:03:02]} 14.
Be2 {[%clk 0:02:29.3]} 14... f5 {[%clk 0:03:00]} 15. exf6 {[%clk 0:02:24.3]}
15... gxf6 {[%clk 0:03:00.9]} 16. b3 {[%clk 0:02:18.6]} 16... cxb3 {[%clk
0:02:54]} 17. Qxb3 {[%clk 0:02:18.5]} 17... h5 {[%clk 0:02:52.6]} 18. Nh4 {[%clk
0:02:16.3]} 18... Bd6 {[%clk 0:02:49.5]} 19. Ba3 {[%clk 0:02:02.4]} 19... Bxa3
{[%clk 0:02:22.5]} 20. Rxa3 {[%clk 0:01:59.5]} 20... e5 {[%clk 0:02:18.1]} 21.
Bb5 {[%clk 0:01:55.8]} 21... Nc4 {[%clk 0:01:52.5]} 22. Ra2 {[%clk 0:01:44.7]}
22... N6a5 {[%clk 0:01:47.6]} 23. Qb4 {[%clk 0:01:43.5]} 23... Qd6 {[%clk
0:01:38.9]} 24. Rxa5 {[%clk 0:01:27]} 24... Qxb4 {[%clk 0:01:37]} 25. cxb4
{[%clk 0:01:27.3]} 25... Nxa5 {[%clk 0:01:35.2]} 26. bxa5 {[%clk 0:01:28.2]}
26... a6 {[%clk 0:01:24.1]} 27. Be2 {[%clk 0:01:25.9]} 27... exd4 {[%clk
0:01:18.9]} 28. Rd1 {[%clk 0:01:24.6]} 28... Kd7 {[%clk 0:01:07.1]} 29. Ngf5
{[%clk 0:01:23.7]} 29... Rc8 {[%clk 0:01:02.6]} 30. Nxd4 {[%clk 0:01:14.5]}
30... Rc5 {[%clk 0:01:01.6]} 31. Nb3 {[%clk 0:01:13.7]} 31... Rc2 {[%clk
0:00:55.6]} 32. Bf3 {[%clk 0:01:09.7]} 32... Rc3 {[%clk 0:00:47.9]} 33. Rb1
{[%clk 0:00:56.9]} 33... Rhc8 {[%clk 0:00:45.4]} 34. h3 {[%clk 0:00:49.2]} 34...
Kd6 {[%clk 0:00:31.8]} 35. Bxh5 {[%clk 0:00:37.4]} 35... Rh8 {[%clk 0:00:25.5]}
36. Nf5+ {[%clk 0:00:37.1]} 36... Ke5 {[%clk 0:00:25.5]} 37. Bg4 {[%clk
0:00:36.5]} 37... Bc8 {[%clk 0:00:17]} 38. Re1+ {[%clk 0:00:21.1]} 38... Kf4
{[%clk 0:00:16.9]} 39. Nbd4 {[%clk 0:00:20.8]} 39... Bxf5 {[%clk 0:00:10.5]} 40.
Ne2+ {[%clk 0:00:20.6]} 40... Kg5 {[%clk 0:00:08.4]} 41. Nxc3 {[%clk 0:00:21]}
41... Bxg4 {[%clk 0:00:08.6]} 42. hxg4 {[%clk 0:00:21.4]} 42... d4 {[%clk
0:00:09.5]} 43. Ne4+ {[%clk 0:00:19.8]} 43... Kxg4 {[%clk 0:00:09.9]} 44. Rd1
{[%clk 0:00:20.1]} 44... Kf4 {[%clk 0:00:06.8]} 45. Nc5 {[%clk 0:00:20.3]} 45...
Ke5 {[%clk 0:00:05.5]} 46. Nxa6 {[%clk 0:00:19.2]} 46... Ra8 {[%clk 0:00:05.7]}
47. Nb4 {[%clk 0:00:19.5]} 47... Ke4 {[%clk 0:00:04.9]} 48. a6 {[%clk 0:00:18]}
48... Rb8 {[%clk 0:00:03.8]} 49. Rxd4+ {[%clk 0:00:15.1]} 49... Kxd4 {[%clk
0:00:01.2]} 50. Nc6+ {[%clk 0:00:15.2]} 50... Kc5 {[%clk 0:00:02.1]} 51. Nxb8
{[%clk 0:00:16.1]} 51... Kb6 {[%clk 0:00:03]} 52. Nd7+ {[%clk 0:00:15.5]} 52...
Kxa6 {[%clk 0:00:03.2]} 53. Nxf6 {[%clk 0:00:16.4]} 53... Kb6 {[%clk 0:00:03.7]}
54. Ne4 {[%clk 0:00:16.7]} 1-0

[Event "Late-Titled-Tuesday-Blitz-January-23-2024"]
[Site "Chess.com"]
[Date "2024.01.23"]
[Round "3"]
[White "vugarrasulov"]
[Black "IgorBjelobrk"]
[Result "1-0"]
[WhiteElo "2928"]
[BlackElo "2624"]
[TimeControl "180+1"]
[EndTime "14:29:06 PST"]
[Termination "vugarrasulov won by resignation"]

1. e4 {[%clk 0:03:00.9]} 1... e6 {[%clk 0:02:55.8]} 2. d4 {[%clk 0:03:00.5]}
2... d5 {[%clk 0:02:56]} 3. exd5 {[%clk 0:03:00.4]} 3... exd5 {[%clk 0:02:56]}
4. Nf3 {[%clk 0:03:00.9]} 4... Nf6 {[%clk 0:02:54.9]} 5. Bd3 {[%clk 0:03:00.8]}
5... c5 {[%clk 0:02:50.5]} 6. O-O {[%clk 0:02:58.5]} 6... Nc6 {[%clk 0:02:50.6]}
7. Re1+ {[%clk 0:02:58.2]} 7... Be7 {[%clk 0:02:51.1]} 8. dxc5 {[%clk 0:02:58]}
8... O-O {[%clk 0:02:51.6]} 9. Nbd2 {[%clk 0:02:49.8]} 9... Bxc5 {[%clk
0:02:47.8]} 10. Nb3 {[%clk 0:02:50.3]} 10... Bb6 {[%clk 0:02:47.8]} 11. h3
{[%clk 0:02:46.8]} 11... h6 {[%clk 0:02:46.2]} 12. c3 {[%clk 0:02:46.4]} 12...
a6 {[%clk 0:02:43.4]} 13. Nbd4 {[%clk 0:02:44.4]} 13... Nxd4 {[%clk 0:02:40]}
14. Nxd4 {[%clk 0:02:45.3]} 14... Bxd4 {[%clk 0:02:39.9]} 15. cxd4 {[%clk
0:02:46.2]} 15... Be6 {[%clk 0:02:40.1]} 16. Bf4 {[%clk 0:02:44.5]} 16... Qb6
{[%clk 0:02:36.9]} 17. Qd2 {[%clk 0:02:41]} 17... Ne4 {[%clk 0:02:31.5]} 18.
Bxe4 {[%clk 0:02:30]} 18... dxe4 {[%clk 0:02:32.4]} 19. d5 {[%clk 0:02:28.4]}
19... Rfd8 {[%clk 0:02:27.9]} 20. d6 {[%clk 0:02:28.6]} 20... f5 {[%clk
0:02:19.7]} 21. b3 {[%clk 0:02:26.1]} 21... Rac8 {[%clk 0:02:18.8]} 22. Rac1
{[%clk 0:02:24.5]} 22... Rxc1 {[%clk 0:02:17.9]} 23. Rxc1 {[%clk 0:02:25.4]}
23... Rd7 {[%clk 0:02:13.5]} 24. h4 {[%clk 0:02:24.8]} 24... Kh7 {[%clk
0:02:12.5]} 25. Be5 {[%clk 0:02:18.9]} 25... Kg6 {[%clk 0:02:06.5]} 26. Rc3
{[%clk 0:02:16.6]} 26... Kh7 {[%clk 0:02:06.3]} 27. Qf4 {[%clk 0:02:09.2]} 27...
Qa5 {[%clk 0:02:00.3]} 28. Rc7 {[%clk 0:02:00.5]} 28... Rxc7 {[%clk 0:01:58.2]}
29. dxc7 {[%clk 0:02:01.4]} 29... Qc5 {[%clk 0:01:24.8]} 30. Qg3 {[%clk
0:01:54.7]} 30... Qe7 {[%clk 0:01:23.3]} 31. Bd4 {[%clk 0:01:46.7]} 31... Bc8
{[%clk 0:01:14.8]} 32. h5 {[%clk 0:01:44.4]} 32... Qf7 {[%clk 0:01:14.9]} 33.
Qe5 {[%clk 0:01:44.4]} 33... Qd7 {[%clk 0:01:09.2]} 34. a4 {[%clk 0:01:37.1]}
34... Qf7 {[%clk 0:01:09.1]} 35. b4 {[%clk 0:01:37.2]} 35... Qd7 {[%clk
0:01:09.1]} 36. b5 {[%clk 0:01:37]} 36... axb5 {[%clk 0:01:09.3]} 37. axb5
{[%clk 0:01:37.9]} 37... Qf7 {[%clk 0:01:09.2]} 38. b6 {[%clk 0:01:38.1]} 38...
Qd7 {[%clk 0:01:09.2]} 39. Kh2 {[%clk 0:01:28.3]} 39... Qf7 {[%clk 0:01:08.8]}
40. Kg3 {[%clk 0:01:28.8]} 40... Qd7 {[%clk 0:01:01.3]} 41. Kh2 {[%clk
0:01:18.5]} 41... Qf7 {[%clk 0:01:01.3]} 42. Kg1 {[%clk 0:01:19.2]} 42... Qd7
{[%clk 0:01:01.4]} 43. Qc5 {[%clk 0:01:12.4]} 43... Qf7 {[%clk 0:00:57.2]} 44.
Qd6 {[%clk 0:01:08.1]} 44... Qe6 {[%clk 0:00:49.3]} 45. Qf8 {[%clk 0:00:56.3]}
45... Qd7 {[%clk 0:00:46.5]} 46. Qd8 {[%clk 0:00:51.9]} 46... Qe6 {[%clk
0:00:40.5]} 47. Kh2 {[%clk 0:00:51.2]} 47... Qd7 {[%clk 0:00:34.4]} 48. Kg3
{[%clk 0:00:47.8]} 48... Qe6 {[%clk 0:00:18.8]} 49. Kf4 {[%clk 0:00:46.6]} 49...
Bd7 {[%clk 0:00:18]} 50. Qf8 {[%clk 0:00:42.9]} 50... Qg8 {[%clk 0:00:13.7]} 51.
Qxg8+ {[%clk 0:00:36.1]} 51... Kxg8 {[%clk 0:00:14.6]} 52. Ke5 {[%clk
0:00:36.6]} 52... Kf7 {[%clk 0:00:15]} 53. Kd6 {[%clk 0:00:37.1]} 53... Bc8
{[%clk 0:00:15.4]} 54. g3 {[%clk 0:00:34.4]} 54... g6 {[%clk 0:00:14.1]} 55.
hxg6+ {[%clk 0:00:35.3]} 55... Kxg6 {[%clk 0:00:14.2]} 56. Ke7 {[%clk 0:00:36]}
56... f4 {[%clk 0:00:12.6]} 57. gxf4 {[%clk 0:00:33]} 57... h5 {[%clk
0:00:12.4]} 58. Bf6 {[%clk 0:00:31.7]} 58... Bg4 {[%clk 0:00:08.5]} 59. Bg5
{[%clk 0:00:31.5]} 59... Bf5 {[%clk 0:00:05.2]} 60. Kd8 {[%clk 0:00:31.9]} 60...
Kf7 {[%clk 0:00:05.1]} 61. c8=Q {[%clk 0:00:31.6]} 1-0